[Event "37th ECCC 2022"]
[Site "Mayrhofen"]
[Date "2022.10.06"]
[Round "4.13"]
[White "Korobov, Anton"]
[Black "Erigaisi Arjun"]
[Result "1-0"]
[ECO "A20"]
[WhiteElo "2672"]
[BlackElo "2728"]
[Annotator "TA"]
[PlyCount "127"]
[EventDate "2022.10.03"]
[EventType "team-tourn"]
[EventCountry "AUT"]
[SourceTitle "playchess.com"]
[Source "ChessBase"]
[SourceQuality "1"]
[TimeControl "40/5400+30:1800+30"]

{[%evp 9,127,-2,-4,0,7,-15,0,-8,0,-10,-14,-10,6,2,14,14,1,3,37,14,36,25,41,36,70,70,70,38,40,42,52,10,15,0,0,2,22,0,55,44,46,33,35,52,42,42,43,43,119,5,11,12,12,13,13,13,11,0,9,0,13,0,4,0,38,24,23,16,14,14,15,12,20,18,11,14,61,54,62,31,41,14,31,37,41,29,59,59,54,56,68,58,49,0,45,57,566,566,839,839,839,832,817,817,29961,29966,29949,10195,29980,29981,29981,29979,29981,29982,29982,29981,29985,29986,29987,29988]} 1. c4 {[%emt 0:00:03]} e5 {[%emt 0:00:45]} 2. d3 {[%emt 0:00:21]} Nf6 {[%emt 0:00:07]} 3. Nf3 {[%emt 0:00:09]} Nc6 {[%emt 0:00:06]} 4. a3 {[%emt 0:00:19]} d5 {[%emt 0:00:06]} 5. cxd5 {[%emt 0:00:17]} Nxd5 {[%emt 0:00:05]} 6. e3 {[%emt 0:00:45] A20: English Opening: 1...e5.} g5 {[%emt 0:00:06] [#]} 7. b4 $146 {[%emt 0:01:17]} ({Predecessor:} 7. h3 Bg7 8. Be2 h5 9. Nfd2 g4 10. hxg4 hxg4 11. Rxh8+ Bxh8 12. g3 f5 13. Nc3 {½-½ (42) Wojtaszek,R (2686)-Hovhannisyan,R (2643) Warsaw 2021}) 7... a6 {[%emt 0:08:20]} 8. Bb2 {[%emt 0:02:19] The position is equal.} Bg7 {[%emt 0:00:07]} 9. Be2 {[%emt 0:00:45]} f5 {[%emt 0:05:19]} 10. Nfd2 {[%emt 0:10:24]} O-O {[%emt 0:03:48]} 11. Nc3 {[%emt 0:02:10]} Be6 {[%emt 0:06:12]} 12. Rc1 {[%emt 0:01:53]} Nxc3 {[%emt 0:06:39]} 13. Rxc3 {[%emt 0:04:20]} Ne7 {[%emt 0:08:45]} 14. e4 {[%emt 0:12:40]} Ng6 {[%emt 0:12:26]} 15. exf5 {[%emt 0:04:53]} Bxf5 {[%emt 0:04:39]} 16. g3 {[%emt 0:02:27] Against Nf4} Bh3 {[%emt 0:02:24]} 17. Ne4 {[%emt 0:04:33]} c6 {[%emt 0:02:57]} 18. Bf1 {[%emt 0:03:27]} Bxf1 {[%emt 0:03:07]} 19. Kxf1 {[%emt 0:01:57]} h6 {[%emt 0:03:59]} 20. Kg2 {[%emt 0:03:27]} (20. Qh5 $5 {[%cal Rh5g6]} Qe8 21. Qe2 $11) 20... Qd7 {[%emt 0:02:36]} 21. h3 {[%emt 0:09:11]} Rad8 {[%emt 0:02:41]} 22. Qg4 {[%emt 0:02:48]} Rf7 {[%emt 0:01:46]} 23. Bc1 {[%emt 0:03:15]} Ne7 {[%emt 0:02:01]} (23... Qxg4 $11 24. hxg4 Nf8) 24. Qxd7 $14 {[%emt 0:04:22]} Rxd7 {[%emt 0:00:05]} 25. Nc5 {[%emt 0:01:42]} Rd5 {[%emt 0:01:08]} 26. h4 {[%emt 0:02:30]} gxh4 {[%emt 0:01:44]} 27. Rxh4 {[%emt 0:01:07]} Nf5 {[%emt 0:00:52]} 28. Rh5 {[%emt 0:03:29][%cal Oc5b7]} Kh7 {[%emt 0:05:48] [#]} (28... Bf8 $1 $14) 29. Ne6 {[%emt 0:03:33]} ({White should try} 29. Nxb7 $1 $16 {[%mdl 512] Strongly threatening Nc5.} Kg6 (29... e4 30. Rc5) 30. g4 Rxb7 31. Rxf5) 29... Rf6 $11 {[%emt 0:03:05]} 30. Nc7 {[%emt 0:06:19]} Rd7 {[%emt 0:02:00]} 31. Ne8 {[%emt 0:00:19]} Re6 {[%emt 0:00:05]} 32. Nxg7 {[%emt 0:01:21]} Nxg7 {[%emt 0:00:05]} 33. Rh3 {[%emt 0:02:19]} Nf5 {[%emt 0:01:12]} 34. Rh5 {[%emt 0:01:03]} Ng7 {[%emt 0:01:37]} 35. Rh3 {[%emt 0:00:31]} Nf5 {[%emt 0:00:06]} 36. Rc4 {[%emt 0:01:22]} Rd5 {[%emt 0:03:48]} (36... Nd6 $5 {[%cal Rd6c4]} 37. Rch4 Nf7 $11) 37. Re4 {[%emt 0:01:37]} Nd6 {[%emt 0:01:55]} 38. Re3 {[%emt 0:01:01]} Nf7 {[%emt 0:00:34]} 39. Kf1 {[%emt 0:01:25]} c5 {[%emt 0:01:27]} 40. Rh4 {[%emt 0:00:26]} Nd6 {[%emt 0:02:10]} 41. Rh5 {[%emt 0:31:08] Inhibits Nf5.} cxb4 {[%emt 0:32:18]} 42. axb4 {[%emt 0:00:00]} a5 {[%emt 0:00:00]} (42... Nf7 $11 {deserves consideration.}) 43. bxa5 $14 {[%emt 0:00:00]} Rxa5 {[%emt 0:00:00]} 44. Bb2 {[%emt 0:00:00]} (44. Bd2 $5 {[%cal Rd2a5]} Ra1+ 45. Ke2 $16) 44... Nf7 $1 {[%emt 0:00:00]} 45. d4 {[%emt 0:00:00][%cal Rd4e5]} exd4 {[%emt 0:00:00]} 46. Rxe6 {[%emt 0:00:00]} Rxh5 $11 {[%emt 0:00:00][%mdl 4096] Endgame KRB-KRN} 47. Rf6 {[%emt 0:00:00]} Kg8 {[%emt 0:00:00]} 48. Bxd4 {[%emt 0:00:00]} b5 {[%emt 0:00:00]} 49. Ke2 {[%emt 0:00:00]} Kf8 {[%emt 0:00:00]} 50. f4 {[%emt 0:00:00] White is much more active.} Ke7 {[%emt 0:00:00]} 51. f5 {[%emt 0:00:00]} (51. g4 $14 Rh2+ 52. Ke3) 51... Nd6 {[%emt 0:00:00]} 52. g4 {[%emt 0:00:00] White wants to mate with Re6+.} Rg5 $2 {[%emt 0:00:00][%mdl 8192] This costs Black the game.} (52... Rh2+ $14 53. Kf3 Rd2) 53. Rxh6 $18 {[%emt 0:00:00] And now Bf6+ would win.} Kd7 {[%emt 0:00:00] [#]} 54. Rh7+ $1 {[%emt 0:00:00]} Ke8 {[%emt 0:00:00]} 55. Rg7 {[%emt 0:00:00]} Rxg7 {[%emt 0:00:00]} 56. Bxg7 {[%emt 0:00:00] White threatens Be5 and mate. KB-KN} Kf7 {[%emt 0:00:00]} 57. Be5 {[%emt 0:00:00]} Nc4 {[%emt 0:00:16]} 58. Bd4 {[%emt 0:00:00] Threatening mate with g5.} b4 {[%emt 0:00:43]} 59. g5 {[%emt 0:00:26][%cal Bg4g5,Bg5g6][%mdl 32] White mates.} b3 {[%emt 0:01:17]} 60. g6+ {[%emt 0:00:36]} Ke8 {[%emt 0:00:17]} 61. Kd3 {[%emt 0:01:47]} b2 {[%emt 0:00:14]} 62. Kc2 {[%emt 0:00:18]} Nd6 {[%emt 0:00:32]} 63. f6 {[%emt 0:00:18][%cal Bf5f6,Bf6f7][%mdl 32]} Nf5 {[%emt 0:00:12]} 64. f7+ {[%emt 0:00:30] Weighted Error Value: White=0.10 (very precise) /Black=0.35} 1-0

[Event "37th ECCC 2022"]
[Site "Mayrhofen"]
[Date "2022.10.06"]
[Round "4.14"]
[White "Saric, Ivan"]
[Black "Santos Latasa, Jaime"]
[Result "1-0"]
[ECO "C83"]
[WhiteElo "2668"]
[BlackElo "2677"]
[Annotator "TA"]
[PlyCount "81"]
[EventDate "2022.10.03"]
[EventType "team-tourn"]
[EventCountry "AUT"]
[SourceTitle "playchess.com"]
[Source "ChessBase"]
[SourceQuality "1"]
[TimeControl "40/5400+30:1800+30"]

{[%evp 21,81,32,28,31,33,43,52,53,54,41,41,44,23,23,18,29,72,80,62,77,83,81,92,110,122,131,121,121,118,113,188,191,368,368,431,423,516,515,785,779,675,808,786,777,731,683,844,828,830,869,854,851,1260,1161,1003,931,7216,6135,29982,29983,29987,29988]} 1. e4 {[%emt 0:00:02]} e5 {[%emt 0:00:07]} 2. Nf3 {[%emt 0:00:04]} Nc6 {[%emt 0:00:03]} 3. Bb5 {[%emt 0:00:33]} a6 {[%emt 0:00:06]} 4. Ba4 {[%emt 0:00:03]} Nf6 {[%emt 0:00:07]} 5. O-O {[%emt 0:00:04]} Nxe4 {[%emt 0:00:06]} 6. d4 {[%emt 0:00:06]} b5 {[%emt 0:00:04]} 7. Bb3 {[%emt 0:00:03]} d5 {[%emt 0:00:09][%cal Bd7d5,Bd5d4,Bd4d3][%mdl 32]} 8. dxe5 {[%emt 0:00:06]} Be6 {[%emt 0:00:06]} 9. c3 {[%emt 0:01:21]} Be7 {[%emt 0:00:17]} 10. Nbd2 {[%emt 0:00:26]} Nc5 {[%emt 0:00:07]} 11. Bc2 {[%emt 0:00:03]} d4 {[%emt 0:00:06]} 12. Nb3 {[%emt 0:00:12][%cal Rb3d4] C83: Open Ruy Lopez: 9 c3 Be7.} d3 {[%emt 0:00:09]} 13. Bb1 {[%emt 0:00:10]} Nxb3 {[%emt 0:00:06]} 14. axb3 {[%emt 0:00:04][%cal Ba2b3,Bb3b4,Bb4a5,Ba5a6][%mdl 32] White is slightly better.} Bf5 {[%emt 0:00:07]} 15. Re1 {[%emt 0:00:54]} O-O {[%emt 0:01:18]} 16. b4 {[%emt 0:01:22]} Qd7 {[%emt 0:00:45]} 17. Bf4 {[%emt 0:00:43]} Rfd8 {[%emt 0:01:16]} 18. h3 {[%emt 0:01:20] [#]} Kh8 $146 {[%emt 0:02:08]} ({Predecessor:} 18... a5 19. bxa5 Rxa5 20. Rxa5 Nxa5 21. Nd4 g5 22. Bxd3 Bxd3 23. Qxd3 gxf4 24. Qe4 Re8 25. Qxf4 {1-0 (37) Svidler,P (2723)-Yilmaz,M (2630) chess24.com INT 2020}) 19. Re3 {[%emt 0:08:58]} a5 {[%emt 0:16:59]} 20. bxa5 $1 {[%emt 0:02:27]} Bc5 {[%emt 0:02:16] White leaves nothing to chance now.} 21. Re1 {[%emt 0:09:17] Threatens to win with b4.} b4 {[%emt 0:05:06]} ({Less strong is} 21... Rxa5 22. Rxa5 Nxa5 23. b4 $18) 22. a6 {[%emt 0:00:35]} bxc3 {[%emt 0:00:43]} 23. bxc3 {[%emt 0:00:03]} h6 {[%emt 0:02:12]} 24. Qd2 {[%emt 0:14:16][%cal Of4h6]} Kg8 {[%emt 0:05:28]} 25. Be3 {[%emt 0:02:56]} Qe7 {[%emt 0:01:27]} (25... Bb6 $16) 26. Ba2 $18 {[%emt 0:08:28]} Be6 $2 {[%emt 0:22:58]} (26... Nxe5 27. Nxe5 Qxe5) 27. Bxe6 {[%emt 0:00:36]} fxe6 {[%emt 0:00:09] [#]} 28. Bxh6 $1 {[%emt 0:14:49][%mdl 512]} gxh6 {[%emt 0:07:05]} (28... Rd7 29. Re4) 29. Qxh6 {[%emt 0:00:04] Black must now prevent Re4.} Qf7 {[%emt 0:09:40]} (29... Kf7 $142 30. Ng5+ Ke8 31. Nxe6 Kd7) 30. Re4 {[%emt 0:01:13] White threatens Rg4+ and mate.} Bf8 {[%emt 0:00:17]} 31. Rg4+ {[%emt 0:00:26]} Bg7 {[%emt 0:00:06] [#]} 32. Rxg7+ $1 {[%emt 0:00:22][%mdl 576] Deflection} Qxg7 {[%emt 0:00:06]} 33. Qxe6+ {[%emt 0:00:03]} Kh8 {[%emt 0:00:07][%cal Od8g8]} 34. Qxc6 {[%emt 0:01:19] Ra4 is the strong threat.} Rg8 {[%emt 0:00:16]} 35. g3 {[%emt 0:03:40]} Qg6 {[%emt 0:03:12]} 36. e6 {[%emt 0:02:14] aiming for Ra4.} Rae8 {[%emt 0:00:51]} 37. a7 Rxe6 {[%emt 0:01:53]} 38. Qd5 {[%emt 0:06:25]} Ra6 {[%emt 0:01:00]} 39. Qd4+ {[%emt 0:00:16]} Kh7 {[%emt 0:00:11] [#]} 40. Ng5+ $1 {[%emt 0:00:38][%mdl 512]} Qxg5 {[%emt 0:01:43]} (40... Kh6 41. Rxa6) 41. Rxa6 {[%emt 0:31:14] Weighted Error Value: White=0.01 (flawless) /Black=0.52} 1-0

[Event "37th ECCC 2022"]
[Site "Mayrhofen"]
[Date "2022.10.06"]
[Round "4.15"]
[White "Idani, Pouya"]
[Black "Nihal Sarin"]
[Result "1/2-1/2"]
[ECO "C88"]
[WhiteElo "2623"]
[BlackElo "2673"]
[Annotator "TA"]
[PlyCount "69"]
[EventDate "2022.10.03"]
[EventType "team-tourn"]
[EventCountry "AUT"]
[SourceTitle "playchess.com"]
[Source "ChessBase"]
[SourceQuality "1"]
[TimeControl "40/5400+30:1800+30"]

{[%evp 25,69,8,22,22,14,18,18,11,0,0,0,0,2,0,10,0,0,0,0,0,10,6,11,5,9,12,12,11,6,8,10,9,6,6,12,0,1,1,14,11,9,9,10,0,0,0]} 1. e4 {[%emt 0:00:01]} e5 {[%emt 0:00:27]} 2. Nf3 {[%emt 0:00:06]} Nc6 {[%emt 0:00:02]} 3. Bb5 {[%emt 0:00:04][%cal Bf1b5,Bb5a4,Ba4b3][%mdl 32]} a6 {[%emt 0:00:04]} 4. Ba4 {[%emt 0:00:04]} Nf6 {[%emt 0:00:03]} 5. O-O {[%emt 0:00:06]} Be7 {[%emt 0:00:02]} 6. Re1 {[%emt 0:03:32]} b5 {[%emt 0:00:07]} 7. Bb3 {[%emt 0:00:02]} O-O {[%emt 0:00:06]} 8. a4 {[%emt 0:01:15]} Bb7 {[%emt 0:00:04]} 9. d3 {[%emt 0:00:35]} d6 {[%emt 0:00:05]} 10. Nbd2 {[%emt 0:01:30]} Nd7 {[%emt 0:00:06]} 11. c3 {[%emt 0:09:25]} Nc5 {[%emt 0:00:05]} 12. axb5 {[%emt 0:00:04]} axb5 {[%emt 0:00:05]} 13. Rxa8 {[%emt 0:00:04]} Qxa8 {[%emt 0:00:07] The position is equal.} 14. Bc2 {[%emt 0:00:05] C88: Closed Ruy Lopez: Anti-Marshall Systems.} b4 $1 {[%emt 0:00:05] The main line 14...b4 scores better than 14...Bf6.} 15. d4 {[%emt 0:02:28]} bxc3 {[%emt 0:00:07]} 16. bxc3 {[%emt 0:00:03]} Nd7 {[%emt 0:00:08]} 17. Nf1 {[%emt 0:08:42]} Qa1 {[%emt 0:00:06]} 18. Bd2 {[%emt 0:00:53]} Qxd1 {[%emt 0:00:06]} 19. Rxd1 {[%emt 0:00:04]} Bf6 {[%emt 0:22:40][%cal Re5d4]} 20. Be3 {[%emt 0:05:20]} Ra8 {[%emt 0:01:08]} 21. Rb1 {[%emt 0:03:39] [#]} Nd8 $146 {[%emt 0:01:51]} ({Predecessor:} 21... Bc8 22. N1d2 g6 23. h3 Rb8 24. Rxb8 Ndxb8 25. Bd3 Kf8 26. Kf1 Nd7 27. Bb5 Nd8 {0-1 (51) Dominguez Perez,L (2763)-Abdusattorov,N (2608) chess24.com INT 2020}) 22. N1d2 {[%emt 0:07:35]} d5 {[%emt 0:14:09]} 23. exd5 {[%emt 0:07:35]} exd4 {[%emt 0:01:24]} 24. Nxd4 {[%emt 0:02:14] Bf5 is the strong threat.} Bxd5 {[%emt 0:00:06]} 25. c4 {[%emt 0:04:36]} Ne6 {[%emt 0:03:36]} 26. Nb5 {[%emt 0:03:04]} Bc6 {[%emt 0:15:12]} 27. Na7 {[%emt 0:00:06]} Ne5 {[%emt 0:02:21]} 28. Nxc6 {[%emt 0:04:10]} Nxc6 {[%emt 0:00:18]} 29. Be4 {[%emt 0:00:01] A strong pair of Bishops.} Ra6 {[%emt 0:03:44]} 30. Nf3 {[%emt 0:04:17]} g6 {[%emt 0:04:58]} 31. g3 {[%emt 0:00:30]} Ncd4 {[%emt 0:10:44]} 32. Rb7 {[%emt 0:08:55]} Nxf3+ {[%emt 0:01:32]} ({Don't take} 32... Ra1+ 33. Kg2 $14) 33. Bxf3 {[%emt 0:00:05]} Bg5 {[%emt 0:00:49]} 34. Ra7 {[%emt 0:02:43]} Rxa7 {[%emt 0:04:57]} 35. Bxa7 {[%emt 0:00:10] An even fight not without its subleties.  Weighted Error Value: White=0.02 (flawless) /Black=0.02 (flawless)} 1/2-1/2

[Event "37th ECCC 2022"]
[Site "Mayrhofen"]
[Date "2022.10.06"]
[Round "4.16"]
[White "Volokitin, Andrei"]
[Black "Alonso Rosell, Alvar"]
[Result "1-0"]
[ECO "C50"]
[WhiteElo "2645"]
[BlackElo "2563"]
[Annotator "TA"]
[PlyCount "105"]
[EventDate "2022.10.03"]
[EventType "team-tourn"]
[EventCountry "AUT"]
[SourceTitle "playchess.com"]
[Source "ChessBase"]
[SourceQuality "1"]
[TimeControl "40/5400+30:1800+30"]

{[%evp 11,105,15,29,14,20,16,20,19,32,52,43,18,12,21,32,31,29,30,37,31,31,29,26,11,79,22,74,58,77,78,133,69,85,72,81,37,53,47,52,50,65,17,28,-35,0,-109,-118,-279,87,80,142,135,142,137,206,210,222,239,258,235,218,125,102,112,139,108,1593,1568,1526,0,0,0,0,-8,183,163,177,176,161,164,184,175,187,0,172,0,0,0,314,333,804,800,1058,1050,29989,29990]} 1. e4 {[%emt 0:00:02]} e5 {[%emt 0:00:03]} 2. Nf3 {[%emt 0:00:03]} Nc6 {[%emt 0:00:05]} 3. Bc4 {[%emt 0:00:14]} Nf6 {[%emt 0:00:08]} 4. d3 {[%emt 0:00:05]} Bc5 {[%emt 0:00:06]} 5. O-O {[%emt 0:00:08]} a6 {[%emt 0:00:41]} 6. c3 {[%emt 0:00:14]} Ba7 {[%emt 0:00:06]} 7. Re1 {[%emt 0:00:56] 7.a4 is the modern continuation. C54: Giuoco Piano: 4 c3 Nf6, main lines with 5 d4 and 5 d3.} d6 {[%emt 0:00:31]} 8. a4 {[%emt 0:00:10]} h6 {[%emt 0:00:06]} 9. Nbd2 {[%emt 0:00:33] The position is equal.} g5 {[%emt 0:00:11]} 10. b4 {[%emt 0:00:09]} Nh7 {[%emt 0:00:19]} 11. Kh1 {[%emt 0:00:18]} O-O {[%emt 0:00:20]} 12. Rf1 {[%emt 0:12:39] [#]} Qf6 $146 {[%emt 0:00:21]} ({Predecessor:} 12... Ne7 13. Ra3 Kg7 14. d4 Ng6 15. Bd3 Nf4 16. Bb1 g4 17. Ng1 b5 18. axb5 axb5 {1-0 (46) Tari,A (2653)-Moroni,L (2588) Terme Catez 2022}) 13. Bb3 {[%emt 0:12:46]} Bg4 {[%emt 0:18:58]} 14. Qc2 {[%emt 0:21:00]} Ne7 {[%emt 0:00:56]} 15. d4 {[%emt 0:09:58]} Ng6 {[%emt 0:11:26]} 16. Bb2 {[%emt 0:00:58]} Rad8 {[%emt 0:20:11]} 17. Ng1 {[%emt 0:08:24]} Qg7 {[%emt 0:01:52]} (17... exd4 $11 18. f3 Be6) 18. Nc4 {[%emt 0:10:55]} (18. f3 $1 $16 {[%cal Rf3g4]} Bd7 19. Ne2) 18... Nf6 {[%emt 0:17:01]} (18... exd4 $11 {keeps the balance.} 19. cxd4 Bxd4) 19. Ne3 {[%emt 0:01:05]} Bc8 {[%emt 0:01:03]} 20. Ne2 {[%emt 0:08:42]} h5 {[%emt 0:02:25]} (20... Nf4 $142) 21. Ng3 {[%emt 0:01:27]} (21. c4 $16) 21... Ne7 {[%emt 0:00:48]} 22. Rad1 {[%emt 0:02:22] White is more active.} h4 {[%emt 0:03:01]} 23. Ngf5 {[%emt 0:02:04]} Nxf5 {[%emt 0:00:10]} 24. Nxf5 {[%emt 0:04:51]} Bxf5 {[%emt 0:00:47]} 25. exf5 {[%emt 0:00:01]} e4 {[%emt 0:07:04]} 26. c4 {[%emt 0:00:58]} (26. Bc1 $14 {is superior.}) 26... Rfe8 $11 {[%emt 0:00:26]} 27. d5 {[%emt 0:00:21]} (27. c5 $11) 27... Qh6 {[%emt 0:03:12]} (27... a5 $5) 28. a5 {[%emt 0:01:17]} (28. c5 $11) 28... e3 $17 {[%emt 0:03:40]} 29. fxe3 {[%emt 0:00:26]} (29. Bxf6 $17 Qxf6 30. fxe3) 29... Ng4 $2 {[%emt 0:05:55]} ({Black should try} 29... Ne4 $1 $19 {[%cal Re4g3]} 30. h3 Ng3+ 31. Kh2 Nxf1+ 32. Rxf1 Rxe3) 30. e4 $16 {[%emt 0:00:07]} h3 {[%emt 0:01:04]} ({Better is} 30... Ne3 31. Qd3 h3) 31. g3 {[%emt 0:01:41]} Ne3 {[%emt 0:00:22]} 32. Qd3 {[%emt 0:00:01]} Qh5 {[%emt 0:01:17]} (32... Nxd1 $16 33. Rxd1 f6) 33. c5 $18 {[%emt 0:00:05]} (33. Qc3 Qh6 $14) 33... Nxf1 {[%emt 0:00:37]} 34. Rxf1 {[%emt 0:00:05]} Qg4 {[%emt 0:01:02]} 35. Bc2 {[%emt 0:00:07] f6 is the strong threat. This bishop pair is nice.} c6 {[%emt 0:01:13]} 36. cxd6 {[%emt 0:02:09]} (36. Qc3 Re5 37. Qd3 Ree8) (36. Qd4 $18 {[%csl Gb2][%cal Rd4g7]} Re5 37. Qd3) 36... Rxd6 $16 {[%emt 0:00:27]} 37. f6 {[%emt 0:00:12] Chess con chili.} (37. Qc3 f6 38. Qd3 Kg7 $17) 37... Qh5 {[%emt 0:00:32]} 38. Rf5 {[%emt 0:00:21] Hoping for e5.} Qg4 $2 {[%emt 0:00:32][%mdl 8192]} (38... cxd5 $2 39. e5 Kf8 40. exd6 $18) (38... Kf8 $16) 39. e5 $1 $18 {[%emt 0:00:18] White wants to mate with Rxg5+.} (39. Qd2 $2 Kf8 40. Rf1 Rxe4 $19) 39... Kf8 {[%emt 0:00:30]} 40. Qe4 $2 {[%emt 0:01:38]} ({Only move:} 40. Rf1 $18 {Threatening mate with Qh7.} Qe6 41. dxe6 Rxd3 42. e7+ Rxe7 43. fxe7+ Ke8 44. Bxd3) 40... Qxe4+ $11 {[%emt 0:00:23]} 41. Bxe4 {[%emt 0:30:02]} cxd5 {[%emt 0:16:08][%cal Od6f6] aiming for ...Rxf6!} 42. Bd3 {[%emt 0:00:00]} (42. exd6 $2 Rxe4 43. Bc3 Ke8 44. Rxd5 Kd7 $19) 42... Rc6 {[%emt 0:01:42] [#]} (42... Rde6 $1 $11 {and Black has nothing to worry.} 43. b5 Be3) 43. b5 $1 $18 {[%emt 0:00:00]} axb5 {[%emt 0:00:39]} 44. Rxg5 {[%emt 0:00:00]} (44. Bxb5 Rc2 45. Ba3+ Bc5 46. Bxe8 Kxe8 47. Bxc5 Rxc5 $17) 44... Ree6 {[%emt 0:09:27]} (44... b4 $2 45. Bh7 Rxf6 46. Rg8+ Ke7 47. exf6+ $18) 45. Rh5 {[%emt 0:00:00][%cal Rh5h8]} Ke8 {[%emt 0:00:00]} 46. Rxh3 {[%emt 0:00:00]} (46. Bxb5 $6 d4 $14) 46... d4 {[%emt 0:02:07]} 47. Rh8+ {[%emt 0:00:00]} (47. Bxb5 Rxe5 48. Rh8+ (48. Bxc6+ bxc6 49. Rh8+ Kd7 $15) 48... Kd7 49. Bxc6+ bxc6 $15) 47... Kd7 {[%emt 0:00:01] [#]} 48. Rf8 $2 {[%emt 0:00:00]} (48. Bxb5 Rxe5 49. Bxc6+ bxc6 $15) (48. Bf5 $1 $18 {Black must now prevent Rf8.} Kc7 49. Ba3 (49. Bxe6 Rxe6 50. Rf8 Kc6 $11)) 48... Rxe5 $11 {[%emt 0:02:59] And now ...Ke6 would win.} 49. Rxf7+ {[%emt 0:00:00]} Ke6 $2 {[%emt 0:01:09][%mdl 8192]} (49... Kd8 $1 $11 {and Black is okay.}) 50. Rxb7 $18 {[%emt 0:00:00]} Re3 $2 {[%emt 0:00:47]} (50... Re1+ 51. Kg2 Rd1) 51. f7 {[%emt 0:00:00]} ({But not} 51. Rxa7 $2 Rxd3 52. Re7+ Kxf6 $19) ({Stronger than} 51. Re7+ Kd6 52. Be4 (52. Rxa7 $2 Rxd3 53. f7 Rc8 $19) (52. Bxb5 Rc2 $11) 52... Rc8 $11) 51... Rc8 {[%emt 0:00:38]} 52. Bxb5 {[%emt 0:00:00]} Rc2 {[%emt 0:00:31]} 53. f8=Q {[%emt 0:00:00] Weighted Error Value: White=0.32/Black=0.49} 1-0